Cogmind - Beta 17 @@@ ROGUE MODE // 2026.07.15 @ 16:48:03 Player: JoshuaCF Result: Destroyed by HZ-JLZ(h) with KE Penetrator Performance ------------- Evolutions (0) 0 Regions Visited (3) 600 Robots Destroyed (24) 120 Value Destroyed (395) 395 Prototype IDs (6) 120 Alien Tech Used (0) 0 Bonus (800) 800 TOTAL SCORE: 2035 Bonus ------- Registered with UFD 300 Met Optimus in HQ 500 Cogmind --------- Core Integrity 0/250 Matter 268/300 Energy 91/100 System Corruption 1% Temperature Cool (38) Movement Walking (120) Location -9/Scraptown Parts ------- > --- POWER (1) -------- (None) > --- PROPULSION (2) --- Aluminum Leg > --- UTILITY (2) ------ A0-MCA's Component Scanner > --- WEAPON (2) ------- (None) > --- INVENTORY (5) ---- Signal Interpreter EM Pulse Gun EM Pulse Gun Light Cannon Peak State ------------ > --- POWER ------------ Ion Engine > --- PROPULSION ------- Aluminum Leg Aluminum Leg > --- UTILITY ---------- Large Storage Unit A0-MCA's Component Scanner > --- WEAPON ----------- Beam Cannon Light Cannon > --- INVENTORY -------- Ion Engine Ion Engine Aluminum Leg Aluminum Leg Aluminum Leg Signal Interpreter Targeting Computer EM Pulse Gun EM Pulse Gun Light Assault Rifle Light Assault Rifle Minigun Light Cannon [Rating: 16] Favorites ----------- Power Ion Engine Engine Ion Engine Propulsion Aluminum Leg Leg Aluminum Leg Utility Targeting Computer Storage Large Storage Unit Processor Targeting Computer Weapon Light Cannon Energy Gun Medium Laser Energy Cannon Beam Cannon Ballistic Gun Light Assault Rifle Ballistic Cannon Light Cannon Build | -11 -10 -10 -9 ------- Run | Yrd Mat Sub Scr Slots Evolved . | . . . . Power . | . . . . Propulsion . | . . . . Utility . | . . . . Weapon . | . . . . Parts Attached 21 | 6 14 . 1 Power 1 | 1 . . . Engine 1 | 1 . . . Core . | . . . . Reactor . | . . . . Propulsion 7 | 2 5 . . Treads . | . . . . Leg 7 | 2 5 . . Wheel . | . . . . Hover . | . . . . Flight . | . . . . Utility 4 | 1 2 . 1 Device . | . . . . Storage 2 | 1 1 . . Processor 2 | . 1 . 1 Hackware . | . . . . Protection . | . . . . Artifact . | . . . . Weapon 9 | 2 7 . . Energy Gun 2 | 2 . . . Energy Cannon 1 | . 1 . . Ballistic Gun 4 | . 4 . . Ballistic Cannon 2 | . 2 . . Launcher . | . . . . Special Weapon . | . . . . Impact Weapon . | . . . . Slashing Weapon . | . . . . Piercing Weapon . | . . . . Special Melee Weapon . | . . . . Unidentified Prototypes . | . . . . Parts Lost 5 | . . . 5 Power 1 | . . . 1 Propulsion 2 | . . . 2 Utility . | . . . . Weapon 2 | . . . 2 Highest Loss Streak 5 | . . . 5 To Critical Strikes 2 | . . . 2 Average Backups 12 | 2 10 14 13 Power 1 | . 1 2 1 Propulsion 2 | 1 2 3 2 Utility 2 | . 1 2 2 Weapon 5 | . 4 6 5 Tool/Special . | . . . . Unused Backups 18 | . 9 1 8 Power 5 | . 3 . 2 Propulsion 4 | . 4 . . Utility 4 | . 1 1 2 Weapon 5 | . 1 . 4 Tool/Special . | . . . . Average Slot Usage (%) 99 | . 98 100 99 Engine 13 | . 14 14 13 Leg 28 | . 28 28 28 Storage 13 | . 14 14 13 Processor 13 | . 12 14 14 Energy Gun 1 | . 6 . . Energy Cannon 11 | . 4 14 14 Ballistic Gun 1 | . 6 . . Ballistic Cannon 12 | . 10 14 14 Peak Build Rating 16 | 6 8 8 16 Average Rating 8 | 5 7 8 9 On Entrance 5 | . 6 8 8 Avg Prop Armor Cover (%) . | . . . . Naked Turns . | . . . . Heaviest Build 31 | 14 31 31 31 Greatest Support 20 | 20 20 20 20 Greatest Overweight (x) 3 | 3 1 1 1 Average Overweight (x) . | . . 1 . Largest Inventory Capacity 15 | 8 15 15 15 Average Capacity 13 | 7 11 15 14 Most Carried 15 | 6 15 15 15 Average Carried 12 | 3 10 14 14 Final Capacity 15 | 8 15 15 5 Final Carried 15 | 6 15 15 4 Class Distribution -------------------- 100% | Mutant Dominant Class ---------------- Mutant | -10/Materials Mutant | -10/Subcaves Mutant | -9/Scraptown Resources | -11 -10 -10 -9 ----------- Run | Yrd Mat Sub Scr Matter Collected 634 | 249 385 . . Remotely . | . . . . Salvage Created 617 | . 617 . . Parts 45 | . 45 . . Haulers Intercepted 1 | . 1 . . Recyclers Shooed 1 | . 1 . . Parts Field Recycled . | . . . . Retrieved Matter . | . . . . Parts Self-Destructed . | . . . . Prevented . | . . . . Parts Restored . | . . . . Kills | -11 -10 -10 -9 ------- Run | Yrd Mat Sub Scr Combat Hostiles Destroyed 14 | . 14 . . Guns 3 | . 3 . . Cannons 11 | . 11 . . Classes Destroyed 7 | . 7 . . Worker 5 | . 5 . . Builder 1 | . 1 . . Hauler 1 | . 1 . . Recycler 1 | . 1 . . Watcher 2 | . 2 . . Swarmer 6 | . 6 . . Grunt 8 | . 8 . . Best Kill Streak 8 | . 8 . . Combat Bots Only 6 | . 6 . . Max Kills in Single Turn 1 | . 1 . . Gunslinging . | . . . . Exploded . | . . . . Melee . | . . . . Uniques/NPCs Destroyed . | . . . . Combat | -11 -10 -10 -9 -------- Run | Yrd Mat Sub Scr Hostile Shots Fired 104 | . 54 . 50 Missed 27 | . 11 . 16 Hits 77 | . 43 . 34 Projectile 77 | . 43 . 34 Critical Strikes 5 | . . . 5 Damage Taken 1163 | . 418 . 745 Core 250 | . 67 . 183 Absorbed by Shields . | . . . . Regen/Repaired (Parts) 131 | . . . 131 Core Remaining (%) 100 | 100 . . . Volleys Fired 60 | . 60 . . Largest 2 | . 2 . . Hottest 110 | . 110 . . Shots Fired 121 | . 120 . 1 Gun 62 | . 62 . . Cannon 59 | . 58 . 1 Launcher . | . . . . Special . | . . . . Kinetic 66 | . 66 . . Thermal 55 | . 54 . 1 Explosive . | . . . . Electromagnetic . | . . . . Robot Hit Streak 9 | . 9 . . Robot Miss Streak 4 | . 4 . 1 Penetration Max . | . . . . Secondary Targets 1 | . 1 . . Max Gunslinging Chain 1 | . 1 . . Shots Hit Robots 77 | . 77 . . Core Hits 32 | . 32 . . Critical Kills . | . . . . Critical Parts Destroyed . | . . . . Critical Strikes 2 | . 2 . . Blast 2 | . 2 . . Melee Attacks . | . . . . Impact . | . . . . Slashing . | . . . . Piercing . | . . . . Sneak Attacks . | . . . . Combat Hostiles . | . . . . Follow-up Attacks . | . . . . Damage Inflicted 1102 | . 1102 . . Guns 370 | . 370 . . Cannons 732 | . 732 . . Explosions . | . . . . Melee . | . . . . Ramming . | . . . . Kinetic 632 | . 632 . . Thermal 470 | . 470 . . Explosive . | . . . . Electromagnetic . | . . . . Impact . | . . . . Slashing . | . . . . Piercing . | . . . . Highest Corruption 1 | . 1 1 1 Average Corruption 1 | . 1 1 1 Corruption Purged . | . . . . Corruption Blocked . | . . . . Effects 25 | . 8 1 16 Message Errors 10 | . 3 . 7 Matter Fused 7 | . 2 . 5 Heat Flow Errors 2 | . . 1 1 Energy Discharges 3 | . 1 . 2 Data Loss (major) 1 | . 1 . . Misfires 2 | . 1 . 1 Overload Shots . | . . . . Overflow Damage 13 | . 13 . . Projectiles 13 | . 13 . . Explosions . | . . . . Melee . | . . . . Knockbacks 7 | . 7 . . Impact . | . . . . Kinetic 6 | . 6 . . Secondary 1 | . 1 . . Self-Inflicted Damage . | . . . . Shots . | . . . . Rammed . | . . . . Targets Rammed . | . . . . Kicked . | . . . . Crushed . | . . . . Highest Temperature 332 | . 332 218 93 Average Temperature 89 | . 90 121 35 Received Heat Transfer 278 | . 144 . 134 Effects 4 | . 4 . . Energy Bleed 1 | . 1 . . Interference 3 | . 3 . . Siege Activations . | . . . . Martial Activations . | . . . . Shielding Activations . | . . . . Robots Disrupted . | . . . . Combat Hostiles . | . . . . Robots Corrupted . | . . . . Combat Hostiles . | . . . . Parts Fried . | . . . . Impact Corruptions 1 | . 1 . . Robots Melted . | . . . . Combat Hostiles . | . . . . Parts Melted . | . . . . Heat Transferred 1221 | . 1221 . . Parts Sabotaged . | . . . . Parts Stolen . | . . . . Parts Stripped . | . . . . Power Chain Reactions . | . . . . Alert | -11 -10 -10 -9 ------- Run | Yrd Mat Sub Scr Maximum Alert Level 1 | . 1 . . Low Security (%) 95 | 100 94 . . Level 1 4 | . 5 . . Level 2 . | . . . . Level 3 . | . . . . Level 4 . | . . . . Level 5 . | . . . . High Security . | . . . . Max Security . | . . . . Peak Influence 208 | . 208 . . Initial . | . . . . Average 91 | . 96 . . Influence Increases 442 | . 442 . . Destroy 0b10 Robot/C 280 | . 280 . . Destroy 0b10 Robot/NC 50 | . 50 . . Destroy Leader 76 | . 76 . . Successful Hack 20 | . 20 . . Destroy Structure 1 | . 1 . . Lose Combat Pursuer 15 | . 15 . . Influence Decreases 442 | . 337 71 34 Entered New Map 85 | . . 51 34 Time Decay 357 | . 337 20 . Squads Dispatched 4 | . 4 . . Investigation 3 | . 3 . . Extermination . | . . . . Reinforcement 1 | . 1 . . Assault . | . . . . Garrison . | . . . . Intercept . | . . . . Searches Triggered . | . . . . Construction Impeded . | . . . . Haulers Reinforced . | . . . . Active Scanning Responses . | . . . . Cargo Convoy Interrupts . | . . . . Stealth | -11 -10 -10 -9 --------- Run | Yrd Mat Sub Scr Distress Signals 2 | . 2 . . Communications Jammed . | . . . . Distress Signals . | . . . . Times Spotted 35 | . 21 . 14 Peak Tracking Total 23 | . 5 . 23 Tactical Retreats 1 | . 1 . . Traps | -11 -10 -10 -9 ------- Run | Yrd Mat Sub Scr Traps Triggered 1 | . 1 . . Indirectly . | . . . . Trap Hack Attempts . | . . . . Triggered . | . . . . Disarmed . | . . . . Reprogrammed . | . . . . Reused . | . . . . Traps Extracted . | . . . . Installed . | . . . . Triggered . | . . . . Machines | -11 -10 -10 -9 ---------- Run | Yrd Mat Sub Scr Machines Disabled 1 | . . . 1 Max in Single Turn 1 | . . . 1 Machines Repaired . | . . . . Machines Dismantled . | . . . . Machines Sabotaged . | . . . . Overloaded Fab Kills . | . . . . Hacking | -11 -10 -10 -9 --------- Run | Yrd Mat Sub Scr Machines Accessed 13 | . 7 . 6 Terminals 6 | . 6 . . Fabricators . | . . . . Repair Stations . | . . . . Recycling Units 1 | . 1 . . Scanalyzers . | . . . . Garrison Access . | . . . . Total Hacks 37 | . 20 . 17 Successful 20 | . 3 . 17 Failed 17 | . 17 . . Catastrophic 4 | . 4 . . Database Lockouts . | . . . . Manual 17 | . 17 . . Terminals 18 | . 18 . . Fabricators . | . . . . Repair Stations . | . . . . Recycling Units 2 | . 2 . . Scanalyzers . | . . . . Garrison Access . | . . . . Terminal Hacks 18 | . 1 . 17 Record 12 | . . . 12 Robot Analysis 5 | . . . 5 Terminal Index 1 | . 1 . . Fabricator Hacks . | . . . . Repair Station Hacks . | . . . . Recycling Unit Hacks 1 | . 1 . . Retrieve Components 1 | . 1 . . Scanalyzer . | . . . . Garrison Access Hacks . | . . . . Unauthorized Hacks 1 | . 1 . . Terminals 1 | . 1 . . Botnet 1 | . 1 . . Fabricators . | . . . . Repair Stations . | . . . . Recycling Units . | . . . . Scanalyzers . | . . . . Garrison Access . | . . . . Data Cores Recovered . | . . . . Used . | . . . . Hacking Detections 7 | . 7 . . Full Trace Events 5 | . 5 . . Feedback Events . | . . . . Feedback Blocked . | . . . . Robot Schematics Acquired . | . . . . Robots Built . | . . . . Authchips . | . . . . Time . | . . . . Total Robot Build Rating . | . . . . Part Schematics Acquired . | . . . . Parts Built . | . . . . Authchips . | . . . . Time . | . . . . Total Part Build Rating . | . . . . Part Studies Acquired . | . . . . Parts Repaired . | . . . . Time . | . . . . Parts Recycled . | . . . . Recycled Matter . | . . . . Retrieved Matter . | . . . . Retrieved Components 10 | . 10 . . Parts Scanalyzed . | . . . . Part Schematics Acquired . | . . . . Parts Damaged . | . . . . Bothacking | -11 -10 -10 -9 ------------ Run | Yrd Mat Sub Scr Used RIF Installer . | . . . . Robots Hacked . | . . . . Non-combat . | . . . . Combat . | . . . . Robot Hacks Applied . | . . . . Relay Couplers Released . | . . . . Fabnet Peak Effective % . | . . . . Robots Rewired . | . . . . Allies Hacked . | . . . . Hacks Repelled . | . . . . Allies | -11 -10 -10 -9 -------- Run | Yrd Mat Sub Scr Total Allies . | . . . . Largest Group . | . . . . Highest-Rated Group . | . . . . Highest-Rated Ally . | . . . . Total Orders . | . . . . Ally Attacks . | . . . . Total Damage . | . . . . Kills . | . . . . Allies Corrupted . | . . . . Allies Melted . | . . . . Intel | -11 -10 -10 -9 ------- Run | Yrd Mat Sub Scr Active Infowar (turns) . | . . . . Robot Analysis Total 5 | . . . 5 Derelict Logs Recovered 1 | . . . 1 Drone Launches . | . . . . Drone Recoveries . | . . . . Exploration | -11 -10 -10 -9 ------------- Run | Yrd Mat Sub Scr Turns Passed 4054 | 73 1196 46 2739 Spaces Moved 2151 | 44 642 24 1441 Core 3 | 3 . . . Treads . | . . . . Legs 2148 | 41 642 24 1441 Wheels . | . . . . Hover . | . . . . Flight . | . . . . Fastest Speed 50 | 50 120 190 120 Average Speed 175 | 132 147 190 189 Slowest Speed 200 | 200 190 190 190 Overloaded Moves . | . . . . Propulsion Burnouts . | . . . . Robots Hopped . | . . . . Potential Cave-ins . | . . . . Cave-ins Triggered . | . . . . Exploration Rate (%) 44 | 3 79 4 91 Regions Visited 3 Branch Regions 2 Pre-discovered Areas . | . . . . Known Exits Taken . | . . . . Unknown Exits Taken 3 | 1 1 1 . Scrap Searched 1 | . . . 1 Spaces Dug . | . . . . Terrain Destroyed . | . . . . Melee . | . . . . Projectile . | . . . . AOE . | . . . . Terrain Rammed . | . . . . Walls Destroyed . | . . . . Machines Disabled . | . . . . Actions | -11 -10 -10 -9 --------- Run | Yrd Mat Sub Scr Total 2319 | 55 785 26 1453 Wait 38 | . 31 . 7 Move 2148 | 43 641 23 1441 Hop . | . . . . Pick Up 26 | 6 18 1 1 Fast Attach 7 | 6 1 . . Attach 1 | . . . 1 Detach . | . . . . Swap 17 | . 16 . 1 Drop 22 | . 18 2 2 Fire 60 | . 60 . . Melee . | . . . . Ram . | . . . . Kick . | . . . . Crush . | . . . . Escape Stasis . | . . . . Rewire . | . . . . Trap . | . . . . Miscellaneous . | . . . . Route ------- -11/Scrapyard -10/Materials (discovered 5 exits: [*Mat x2] / [*Min x2] / [*Sub]) -10/Subcaves -9/Scraptown (discovered 1 exit: [*Fac]) History --------- Turn | Location | Event 37 | -11/Scrapyard | Discovered new exit (range 14) 74 | -11/Scrapyard | Entered Materials 142 | -10/Materials | Discovered new exit (range 6) 306 | -10/Materials | Build established: Mutant 396 | -10/Materials | Discovered new exit (range 7) 574 | -10/Materials | Derelicts attacked the area 722 | -10/Materials | Discovered new exit (range 14) 967 | -10/Materials | Discovered new exit (range 14) 1257 | -10/Materials | Discovered new exit (range 8) 1270 | -10/Materials | Entered Subcaves 1271 | -10/Subcaves | Approached by a straggling Scientist 1281 | -10/Subcaves | Scientist uncovered a shortcut to Scraptown 1316 | -10/Subcaves | Entered Scraptown 1714 | -9/Scraptown | Visited UFD Registry 1714 | -9/Scraptown | Registered with UFD as "Gravguard" 1740 | -9/Scraptown | Visited CR-KLE's Repair Center 1753 | -9/Scraptown | CR-KLE repaired 6 parts 1788 | -9/Scraptown | Visited IN-MT5's Study 1845 | -9/Scraptown | Scanned Subdweller tech in exchange for log data 1850 | -9/Scraptown | Learned Research machine intel 1881 | -9/Scraptown | Discovered new exit (range 5) 2606 | -9/Scraptown | Visited Shadow of the Wyrm 2644 | -9/Scraptown | Visited Cyclists 2673 | -9/Scraptown | Entered Cyclist Reading Room 2728 | -9/Scraptown | Visited Symbiants 2770 | -9/Scraptown | Visited Fellowship of the Rings 2810 | -9/Scraptown | Visited Comm Corps 3000 | -9/Scraptown | Visited Curators Association 3026 | -9/Scraptown | Visited Scrap Suit Storage 3053 | -9/Scraptown | Visited Research Penetration Think Tank 3161 | -9/Scraptown | Delivered Scrap Shield to a Scientist 3393 | -9/Scraptown | Visited LU-1G1's Boring Crew 3524 | -9/Scraptown | Visited Analyses Database 3572 | -9/Scraptown | Visited Junk Repository 3629 | -9/Scraptown | Visited A0-MCA Data Center 3640 | -9/Scraptown | Given a B- rating by A0-MCA 3646 | -9/Scraptown | Found A0-MCA's Component Scanner 3689 | -9/Scraptown | Visited Derelict Rescue Squad 3746 | -9/Scraptown | Visited Chapter 10 3982 | -9/Scraptown | Met Optimus 3982 | -9/Scraptown | Accepted into 0bPrime 4038 | -9/Scraptown | Attacked by Scraptown defenders 4053 | -9/Scraptown | Core integrity fell below 50% 4055 | -9/Scraptown | Destroyed by HZ-JLZ(h) with KE Penetrator Last Messages --------------- Penetrated by Slug. Slug penetrates 2F-02R(E). Penetrated by Slug. Ion Engine destroyed. AL-X77(j): "Gravguard? More like Loserface!" Critical hit (Burn: +50). Penetrated by Slug. A0-MCA destroyed. Aluminum Leg destroyed. Critical hit (Destroy). Aluminum Leg destroyed. Penetrated by Slug. Slug penetrates Wall. Critical hit (Destroy). Beam Cannon destroyed. 2F-02R(E) heat damages Mak. Light Armor Plating. Critical hit (Burn: +50). Lgt. Cannon destroyed. [Achievement: Hunted] Penetrated by Slug. Map ----- +----------------------------------------------------+ | ?????????????????????????????????????????????????? | | ?????????????????????????????????????????????????? | | ?????????????????????????????????????????????????? | | ?????????????????????????????????????????????????? | | ?????????????????????????????????????????????????? | | ?????????????????????????????????????????????????? | | ?????????????????????????????????????????????????? | | ?????????????????????????????????????????????????? | | ?????????????????????????????????????????????????? | | ?????????????????????????????????????????????????? | | ?????????????????????????????????????????????????? | | ?????????????????????????????????????????????????? | | ?????????????????????????????????????????????????? | | ???????????????????????###???????????????????????? | | ??????????????????????## #??????????????????????? | | ??????????????????????? ??????????????????????? | | ??????????????????????? ??????????????????????? | | ??????????????????????? ??????????????????????? | | ??????????????????????? E??????????????????????? | | ???????????????????????#EE##?????????????????????? | | ??##########???????????# ;#?????????????????????? | | ??#""""""""#?########### ;#?????????????????????? | | ??#" "&& "##"""""""""#; ;??????????????????????? | | ??#" "##"""""""""## ;??########????????????? | | ??#"" ""##"""""""""## # #????????????? | | ??#" "##"""""""""## @# #????????????? | | ??#"" ""##""" """## # #????????????? | | ??#" & "##""" """## # #????????????? | | ??#"" ""##""" "!"## r; #????????????? | | ??# ##"""" """## # #????????????? | | ??# ##""" """##* # #????????????? | | ??# ##" ##%=# #????????????? | | ??#### ########### #####h ;# ########????????????? | | ###### ########### ####;jg;# #########???????????? | | """""" """"""""""" "" " r " "## !!]#???????????? | | "## |!#???????????? | | h "## ####???????????? | | [[= "## !#???????????? | | r!E "## /]#???????????? | | *3Ej ]#???????????? | | """"""""""""""""""""""" p "## ####???????????? | | """"""""""""""""""""""" "## ]#???????????? | | #### ################"" "## #???????????? | | ##????????#"" "#########??????????? | | X"#????????#"" "## """"#??????????? | | "" "" ##????????#"" "## """"#??????????? | | "" "" X"#??????###"" "## " "#??????????? | | " " ######### #"" "## ""#??????????? | | "" "#??????????? | | "" "## X"#??????????? | +----------------------------------------------------+ Best States ------------- Heat Dissipation 25 Energy Generation 10 Energy Capacity 250 Matter Stores 300 Matter Capacity 300 Sight Range 16 Terrain Scan Density 10 Evasion (%) 55 Targeting Accuracy 5 Item Schematics ----------------- None Robot Schematics ------------------ None Fabricated ------------ Nothing Repaired ---------- Nothing Studied --------- None Alien Tech Used ----------------- None Achievements -------------- Hunted Challenges ------------ None Game ------ Seed MyomerShockDrive Manual? 0 Play Time 00:32:21 Cumulative 17.8 hours Start 2026.07.15 @ 16:13:49 End 2026.07.15 @ 16:48:03 Sessions 1 Manual Loads 0 Difficulty Rogue Special Mode None Game No. 16 Rogue 16 Adventurer 0 Explorer 0 Win Type - Total 0 Types 0/0/0/0/0/0/0/0/0/0 Lore% 24 Gallery% 17 Achievement% 19 Wizard Run 0 Options --------- Layout 0 ASCII 0 Keyboard 1 Movement Vi Keybinds 0 Fullscreen 1 Font 18/SmallcapsGlow Map View 76x50 Zoom Use 0% Tactical HUD 0 Map Filters NONE Filters NONE Steam 1 RUN: 8f9bbfca-ab7d-44cf-ae91-40f8be08c44f